[Event "Blixt-SM 2021"]
[Site "Elite Hotel Marina Plaza, Kungstorget 6, Helsingborg, Sweden"]
[Date "2021.11.14"]
[Round "9.3"]
[White "Nord, Alexander"]
[Black "Olsson, Linus"]
[Result "0-1"]
[TimeControl "3 minutes + 2 seconds per move."]
[BlackTitle "FM"]
[WhiteFideId "1738135"]
[BlackFideId "1706098"]
[WhiteElo "1909"]
[BlackElo "2204"]

1. d4 {[%clk 00:03:02]} Nf6 {[%clk 00:03:02]} {[%emt 00:00:02]} 2. Nf3 {[%clk
00:03:03]} e6 {[%clk 00:03:03]} {[%emt 00:00:02]} 3. g3 {[%clk 00:03:04]} c5
{[%clk 00:03:03]} {[%emt 00:00:02]} 4. Bg2 {[%clk 00:03:05]} {[%emt 00:00:01]}
cxd4 {[%clk 00:03:01]} {[%emt 00:00:05]} 5. Nxd4 {[%clk 00:03:04]} {[%emt
00:00:02]} d5 {[%clk 00:03:02]} 6. O-O {[%clk 00:03:03]} {[%emt 00:00:03]} e5
{[%clk 00:03:01]} {[%emt 00:00:03]} 7. Nb3 {[%clk 00:03:02]} {[%emt 00:00:03]}
Nc6 {[%clk 00:03:02]} {[%emt 00:00:01]} 8. Bg5 {[%clk 00:02:56]} {[%emt
00:00:08]} Be6 {[%clk 00:03:00]} {[%emt 00:00:04]} 9. Nc3 {[%clk 00:02:50]}
{[%emt 00:00:08]} d4 {[%clk 00:02:58]} {[%emt 00:00:04]} 10. Ne4 {[%clk
00:02:46]} {[%emt 00:00:06]} Be7 {[%clk 00:02:50]} {[%emt 00:00:10]} 11. Bxf6
{[%clk 00:02:32]} {[%emt 00:00:16]} Bxf6 {[%clk 00:02:49]} {[%emt 00:00:03]} 12.
Nbc5 {[%clk 00:02:32]} {[%emt 00:00:03]} Bc8 {[%clk 00:02:45]} {[%emt
00:00:05]} 13. c3 {[%clk 00:02:16]} {[%emt 00:00:18]} O-O {[%clk 00:02:42]}
{[%emt 00:00:05]} 14. cxd4 {[%clk 00:02:13]} {[%emt 00:00:06]} exd4 {[%clk
00:02:30]} {[%emt 00:00:14]} 15. Nxf6+ {[%clk 00:01:57]} {[%emt 00:00:18]} Qxf6
{[%clk 00:02:29]} {[%emt 00:00:02]} 16. Rc1 {[%clk 00:01:48]} {[%emt 00:00:11]}
Re8 {[%clk 00:01:58]} {[%emt 00:00:33]} 17. Re1 {[%clk 00:01:38]} {[%emt
00:00:11]} h6 {[%clk 00:01:51]} {[%emt 00:00:09]} 18. a3 {[%clk 00:01:22]}
{[%emt 00:00:18]} a5 {[%clk 00:01:50]} {[%emt 00:00:03]} 19. Qb3 {[%clk
00:01:13]} {[%emt 00:00:11]} Ra7 {[%clk 00:01:15]} {[%emt 00:00:38]} 20. Qb6
{[%clk 00:01:10]} {[%emt 00:00:05]} Qd8 {[%clk 00:00:58]} {[%emt 00:00:19]} 21.
Qxd8 {[%clk 00:00:53]} {[%emt 00:00:19]} Rxd8 {[%clk 00:00:49]} {[%emt
00:00:11]} 22. Red1 {[%clk 00:00:40]} {[%emt 00:00:13]} Ne5 {[%clk 00:00:38]}
{[%emt 00:00:14]} 23. Nd3 {[%clk 00:00:28]} {[%emt 00:00:15]} Nxd3 {[%clk
00:00:27]} {[%emt 00:00:13]} 24. Rxd3 {[%clk 00:00:27]} {[%emt 00:00:02]} Bf5
{[%clk 00:00:26]} {[%emt 00:00:03]} 25. Rd2 {[%clk 00:00:24]} {[%emt 00:00:05]}
b6 {[%clk 00:00:23]} {[%emt 00:00:06]} 26. Rc6 {[%clk 00:00:17]} {[%emt
00:00:09]} Re7 {[%clk 00:00:13]} {[%emt 00:00:11]} 27. h3 {[%clk 00:00:14]}
{[%emt 00:00:05]} Re6 {[%clk 00:00:13]} {[%emt 00:00:03]} 28. Rxe6 {[%clk
00:00:14]} {[%emt 00:00:02]} Bxe6 {[%clk 00:00:13]} {[%emt 00:00:02]} 29. Kh2
{[%clk 00:00:13]} {[%emt 00:00:02]} f6 {[%clk 00:00:13]} {[%emt 00:00:02]} 30.
Be4 {[%clk 00:00:13]} {[%emt 00:00:01]} Kf7 {[%clk 00:00:14]} {[%emt 00:00:01]}
31. Bd3 {[%clk 00:00:13]} {[%emt 00:00:02]} Rc8 {[%clk 00:00:15]} 32. Kg2
{[%clk 00:00:09]} {[%emt 00:00:06]} Bd5+ {[%clk 00:00:16]} {[%emt 00:00:02]} 33.
f3 {[%clk 00:00:07]} {[%emt 00:00:04]} Rc1 {[%clk 00:00:17]} {[%emt 00:00:01]}
34. Be4 {[%clk 00:00:06]} {[%emt 00:00:03]} Bxe4 {[%clk 00:00:16]} {[%emt
00:00:03]} 35. fxe4 {[%clk 00:00:07]} Rc4 {[%clk 00:00:16]} {[%emt 00:00:02]}
36. Rd3 {[%clk 00:00:06]} {[%emt 00:00:03]} Ke6 {[%clk 00:00:17]} 37. b3 {[%clk
00:00:07]} {[%emt 00:00:01]} Rc2 {[%clk 00:00:17]} {[%emt 00:00:01]} 38. Kf2
{[%clk 00:00:06]} {[%emt 00:00:02]} Ke5 {[%clk 00:00:19]} {[%emt 00:00:01]} 39.
b4 {[%clk 00:00:05]} {[%emt 00:00:03]} a4 {[%clk 00:00:19]} {[%emt 00:00:02]}
40. Ke1 {[%clk 00:00:03]} {[%emt 00:00:04]} Ra2 {[%clk 00:00:18]} {[%emt
00:00:03]} 41. e3 {[%clk 00:00:04]} Kxe4 {[%clk 00:00:17]} {[%emt 00:00:04]}
0-1

[Event "Blixt-SM 2021"]
[Site "Elite Hotel Marina Plaza, Kungstorget 6, Helsingborg, Sweden"]
[Date "2021.11.14"]
[Round "11.2"]
[White "Olsson, Linus"]
[Black "Storme, Isak"]
[Result "1-0"]
[TimeControl "3 minutes + 2 seconds per move."]
[WhiteTitle "FM"]
[BlackTitle "FM"]
[WhiteFideId "1706098"]
[BlackFideId "1728113"]
[WhiteElo "2204"]
[BlackElo "2037"]

1. d4 {[%clk 00:03:03]} {[%emt 00:01:28]} Nf6 {[%clk 00:03:02]} {[%emt
00:00:03]} 2. c4 {[%clk 00:03:04]} {[%emt 00:00:01]} e6 {[%clk 00:03:02]}
{[%emt 00:00:02]} 3. g3 {[%clk 00:03:05]} {[%emt 00:00:02]} d5 {[%clk
00:03:01]} {[%emt 00:00:03]} 4. Bg2 {[%clk 00:03:05]} {[%emt 00:00:02]} Bb4+
{[%clk 00:03:02]} {[%emt 00:00:01]} 5. Nd2 {[%clk 00:03:04]} {[%emt 00:00:03]}
O-O {[%clk 00:03:00]} {[%emt 00:00:03]} 6. Qc2 {[%clk 00:03:05]} {[%emt
00:00:02]} b6 {[%clk 00:02:40]} {[%emt 00:00:22]} 7. Ngf3 {[%clk 00:03:05]}
{[%emt 00:00:02]} Bb7 {[%clk 00:02:41]} {[%emt 00:00:02]} 8. O-O {[%clk
00:03:05]} {[%emt 00:00:02]} Nbd7 {[%clk 00:02:35]} {[%emt 00:00:08]} 9. b3
{[%clk 00:03:05]} {[%emt 00:00:02]} c5 {[%clk 00:02:32]} {[%emt 00:00:04]} 10.
a3 {[%clk 00:02:58]} {[%emt 00:00:10]} Bxd2 {[%clk 00:02:31]} {[%emt 00:00:02]}
11. Bxd2 {[%clk 00:02:55]} {[%emt 00:00:05]} dxc4 {[%clk 00:02:31]} {[%emt
00:00:03]} 12. Qxc4 {[%clk 00:02:48]} {[%emt 00:00:09]} Bd5 {[%clk 00:02:28]}
{[%emt 00:00:05]} 13. Qc2 {[%clk 00:02:38]} {[%emt 00:00:12]} cxd4 {[%clk
00:02:21]} {[%emt 00:00:09]} 14. Nxd4 {[%clk 00:02:27]} {[%emt 00:00:13]} Bxg2
{[%clk 00:02:20]} {[%emt 00:00:03]} 15. Kxg2 {[%clk 00:02:27]} {[%emt
00:00:02]} Nc5 {[%clk 00:02:20]} {[%emt 00:00:02]} 16. Nf3 {[%clk 00:02:03]}
{[%emt 00:00:26]} Rc8 {[%clk 00:02:18]} {[%emt 00:00:04]} 17. Rac1 {[%clk
00:01:44]} {[%emt 00:00:22]} Nce4 {[%clk 00:02:07]} {[%emt 00:00:13]} 18. Qxc8
{[%clk 00:01:22]} {[%emt 00:00:24]} Qxc8 {[%clk 00:02:08]} {[%emt 00:00:01]} 19.
Rxc8 {[%clk 00:01:23]} {[%emt 00:00:02]} Rxc8 {[%clk 00:02:08]} {[%emt
00:00:01]} 20. Rc1 {[%clk 00:01:22]} {[%emt 00:00:03]} Rxc1 {[%clk 00:01:45]}
{[%emt 00:00:26]} 21. Bxc1 {[%clk 00:01:23]} {[%emt 00:00:01]} Nd5 {[%clk
00:01:41]} {[%emt 00:00:05]} 22. Nd4 {[%clk 00:01:08]} {[%emt 00:00:18]} a6
{[%clk 00:01:21]} {[%emt 00:00:22]} 23. f3 {[%clk 00:01:04]} {[%emt 00:00:06]}
Nc5 {[%clk 00:01:06]} {[%emt 00:00:17]} 24. e4 {[%clk 00:00:36]} {[%emt
00:00:30]} e5 {[%clk 00:00:36]} {[%emt 00:00:32]} 25. exd5 {[%clk 00:00:13]}
{[%emt 00:00:25]} exd4 {[%clk 00:00:36]} {[%emt 00:00:02]} 26. b4 {[%clk
00:00:14]} {[%emt 00:00:01]} Nb3 {[%clk 00:00:19]} {[%emt 00:00:19]} 27. Bf4
{[%clk 00:00:11]} {[%emt 00:00:05]} f6 {[%clk 00:00:13]} {[%emt 00:00:08]} 28.
h4 {[%clk 00:00:10]} {[%emt 00:00:03]} Kf7 {[%clk 00:00:12]} {[%emt 00:00:03]}
29. Kf2 {[%clk 00:00:11]} d3 {[%clk 00:00:06]} {[%emt 00:00:08]} 30. Ke3 {[%clk
00:00:12]} {[%emt 00:00:01]} d2 {[%clk 00:00:07]} 31. Ke2 {[%clk 00:00:13]}
{[%emt 00:00:01]} Ke7 {[%clk 00:00:07]} {[%emt 00:00:02]} 32. Kd1 {[%clk
00:00:08]} {[%emt 00:00:07]} Kd7 {[%clk 00:00:07]} {[%emt 00:00:03]} 33. Kc2
{[%clk 00:00:05]} {[%emt 00:00:05]} Nd4+ {[%clk 00:00:07]} {[%emt 00:00:01]} 34.
Kxd2 {[%clk 00:00:06]} Nxf3+ {[%clk 00:00:08]} {[%emt 00:00:02]} 35. Ke3 {[%clk
00:00:07]} {[%emt 00:00:01]} Ne1 {[%clk 00:00:06]} {[%emt 00:00:03]} 36. Ke4
{[%clk 00:00:06]} {[%emt 00:00:03]} Nc2 {[%clk 00:00:06]} {[%emt 00:00:02]} 37.
Bc1 {[%clk 00:00:05]} {[%emt 00:00:03]} Ne1 {[%clk 00:00:05]} {[%emt 00:00:03]}
38. g4 {[%clk 00:00:05]} {[%emt 00:00:02]} Ng2 {[%clk 00:00:05]} {[%emt
00:00:02]} 39. h5 {[%clk 00:00:06]} {[%emt 00:00:01]} g6 {[%clk 00:00:06]}
{[%emt 00:00:02]} 40. Bd2 {[%clk 00:00:06]} {[%emt 00:00:03]} gxh5 {[%clk
00:00:05]} {[%emt 00:00:02]} 41. gxh5 {[%clk 00:00:07]} Nh4 {[%clk 00:00:05]}
{[%emt 00:00:03]} 42. Be3 {[%clk 00:00:06]} {[%emt 00:00:03]} b5 {[%clk
00:00:06]} {[%emt 00:00:02]} 43. Bf4 {[%clk 00:00:07]} {[%emt 00:00:01]} Ng2
{[%clk 00:00:05]} {[%emt 00:00:02]} 44. Bg3 {[%clk 00:00:07]} {[%emt 00:00:02]}
f5+ {[%clk 00:00:04]} {[%emt 00:00:03]} 45. Kf3 {[%clk 00:00:08]} f4 {[%clk
00:00:03]} {[%emt 00:00:03]} 46. Bxf4 {[%clk 00:00:09]} {[%emt 00:00:02]} Ne1+
{[%clk 00:00:03]} {[%emt 00:00:02]} 47. Ke4 {[%clk 00:00:09]} {[%emt 00:00:02]}
Nc2 {[%clk 00:00:04]} {[%emt 00:00:01]} 48. Bc1 {[%clk 00:00:10]} {[%emt
00:00:01]} Kd6 {[%clk 00:00:05]} 49. Bf4+ {[%clk 00:00:09]} {[%emt 00:00:03]}
Kd7 {[%clk 00:00:07]} {[%emt 00:00:01]} 50. Kf5 {[%clk 00:00:09]} {[%emt
00:00:02]} Nxa3 {[%clk 00:00:08]} {[%emt 00:00:01]} 51. Kf6 {[%clk 00:00:09]}
Nc2 {[%clk 00:00:08]} {[%emt 00:00:01]} 52. Kg7 {[%clk 00:00:10]} {[%emt
00:00:01]} Nxb4 {[%clk 00:00:08]} {[%emt 00:00:02]} 53. d6 {[%clk 00:00:10]}
{[%emt 00:00:02]} a5 {[%clk 00:00:10]} 54. Kxh7 {[%clk 00:00:11]} {[%emt
00:00:02]} a4 {[%clk 00:00:11]} 55. Kg8 {[%clk 00:00:11]} {[%emt 00:00:01]} Nd3
{[%clk 00:00:12]} {[%emt 00:00:02]} 56. Be3 {[%clk 00:00:11]} {[%emt 00:00:02]}
a3 {[%clk 00:00:12]} {[%emt 00:00:02]} 57. h6 {[%clk 00:00:11]} {[%emt
00:00:01]} Ne5 {[%clk 00:00:12]} {[%emt 00:00:02]} 58. Bd4 {[%clk 00:00:11]}
{[%emt 00:00:02]} Ng6 {[%clk 00:00:11]} {[%emt 00:00:03]} 59. Kg7 {[%clk
00:00:11]} {[%emt 00:00:01]} Nh4 {[%clk 00:00:12]} 60. h7 {[%clk 00:00:12]}
{[%emt 00:00:02]} Nf5 {[%clk 00:00:13]} {[%emt 00:00:02]} 61. Kg8 {[%clk
00:00:10]} {[%emt 00:00:03]} Nh6+ {[%clk 00:00:12]} {[%emt 00:00:03]} 62. Kg7
{[%clk 00:00:11]} Nf5 {[%clk 00:00:13]} {[%emt 00:00:01]} 63. Kf6 {[%clk
00:00:09]} {[%emt 00:00:03]} Nxd4 {[%clk 00:00:12]} {[%emt 00:00:03]} 64. h8=Q
{[%clk 00:00:09]} {[%emt 00:00:02]} a2 {[%clk 00:00:11]} {[%emt 00:00:03]} 65.
Qa8 {[%clk 00:00:08]} {[%emt 00:00:04]} Kxd6 {[%clk 00:00:10]} {[%emt
00:00:03]} 66. Qxa2 {[%clk 00:00:08]} {[%emt 00:00:02]} Kc5 {[%clk 00:00:11]}
67. Qa7+ {[%clk 00:00:07]} {[%emt 00:00:02]} Kc4 {[%clk 00:00:12]} {[%emt
00:00:01]} 68. Qc7+ {[%clk 00:00:07]} {[%emt 00:00:03]} Kd5 {[%clk 00:00:13]}
{[%emt 00:00:01]} 69. Qd7+ {[%clk 00:00:08]} Kc5 {[%clk 00:00:13]} {[%emt
00:00:02]} 70. Qc8+ {[%clk 00:00:09]} {[%emt 00:00:01]} Kd5 {[%clk 00:00:14]}
{[%emt 00:00:01]} 71. Qa8+ {[%clk 00:00:09]} {[%emt 00:00:01]} Kc5 {[%clk
00:00:15]} {[%emt 00:00:01]} 72. Ke5 {[%clk 00:00:10]} {[%emt 00:00:01]} Nc6
{[%clk 00:00:15]} {[%emt 00:00:02]} 73. Ke4 {[%clk 00:00:11]} b4 {[%clk
00:00:16]} 74. Kd3 {[%clk 00:00:10]} {[%emt 00:00:02]} Kb5 {[%clk 00:00:18]}
{[%emt 00:00:01]} 75. Qe8 {[%clk 00:00:11]} {[%emt 00:00:01]} Kc5 {[%clk
00:00:19]} {[%emt 00:00:01]} 76. Qh5+ {[%clk 00:00:11]} Kb6 {[%clk 00:00:17]}
{[%emt 00:00:04]} 77. Kc4 {[%clk 00:00:12]} {[%emt 00:00:02]} Kc7 {[%clk
00:00:18]} 78. Kc5 {[%clk 00:00:13]} Kd7 {[%clk 00:00:19]} {[%emt 00:00:02]} 79.
Qf5+ {[%clk 00:00:12]} {[%emt 00:00:02]} Kc7 {[%clk 00:00:18]} {[%emt
00:00:02]} 80. Qf7+ {[%clk 00:00:13]} {[%emt 00:00:02]} 1-0

[Event "Blixt-SM 2021"]
[Site "Elite Hotel Marina Plaza, Kungstorget 6, Helsingborg, Sweden"]
[Date "2021.11.14"]
[Round "12.9"]
[White "Terochin, Piotr"]
[Black "Frisk, Ellinor"]
[Result "1-0"]
[TimeControl "3 minutes + 2 seconds per move."]
[BlackTitle "WIM"]
[WhiteFideId "1113682"]
[BlackFideId "1708481"]
[WhiteElo "1779"]
[BlackElo "2142"]

1. e4 {[%clk 00:03:03]} {[%emt 00:00:01]} c5 {[%clk 00:03:04]} 2. c3 {[%clk
00:03:03]} g6 {[%clk 00:03:04]} {[%emt 00:00:02]} 3. d4 {[%clk 00:03:04]}
{[%emt 00:00:01]} cxd4 {[%clk 00:03:06]} 4. cxd4 {[%clk 00:03:05]} d5 {[%clk
00:03:04]} {[%emt 00:00:03]} 5. exd5 {[%clk 00:03:04]} {[%emt 00:00:04]} Nf6
{[%clk 00:03:05]} {[%emt 00:00:01]} 6. Nc3 {[%clk 00:03:04]} {[%emt 00:00:02]}
Bg7 {[%clk 00:02:58]} {[%emt 00:00:09]} 7. Bc4 {[%clk 00:02:50]} {[%emt
00:00:16]} O-O {[%clk 00:02:58]} {[%emt 00:00:02]} 8. Nf3 {[%clk 00:02:51]}
{[%emt 00:00:01]} Bg4 {[%clk 00:02:50]} {[%emt 00:00:10]} 9. h3 {[%clk
00:02:45]} {[%emt 00:00:08]} Bf5 {[%clk 00:02:44]} {[%emt 00:00:08]} 10. O-O
{[%clk 00:02:42]} {[%emt 00:00:05]} Nbd7 {[%clk 00:02:43]} {[%emt 00:00:03]} 11.
d6 {[%clk 00:02:39]} {[%emt 00:00:05]} exd6 {[%clk 00:02:41]} {[%emt 00:00:04]}
12. Bf4 {[%clk 00:02:32]} {[%emt 00:00:08]} Nb6 {[%clk 00:02:41]} {[%emt
00:00:03]} 13. Bb3 {[%clk 00:02:33]} {[%emt 00:00:01]} Rc8 {[%clk 00:02:26]}
{[%emt 00:00:17]} 14. Nb5 {[%clk 00:02:21]} {[%emt 00:00:14]} Ne4 {[%clk
00:02:18]} {[%emt 00:00:10]} 15. Rc1 {[%clk 00:02:06]} {[%emt 00:00:18]} Rxc1
{[%clk 00:02:12]} {[%emt 00:00:08]} 16. Qxc1 {[%clk 00:02:06]} {[%emt
00:00:01]} a6 {[%clk 00:02:07]} {[%emt 00:00:07]} 17. Nc3 {[%clk 00:02:05]}
{[%emt 00:00:03]} Nxc3 {[%clk 00:02:02]} {[%emt 00:00:06]} 18. bxc3 {[%clk
00:02:04]} {[%emt 00:00:03]} d5 {[%clk 00:01:49]} {[%emt 00:00:16]} 19. Re1
{[%clk 00:01:53]} {[%emt 00:00:13]} Re8 {[%clk 00:01:37]} {[%emt 00:00:14]} 20.
Rxe8+ {[%clk 00:01:51]} {[%emt 00:00:05]} Qxe8 {[%clk 00:01:38]} 21. Qa3 {[%clk
00:01:25]} {[%emt 00:00:28]} Bf8 {[%clk 00:01:16]} {[%emt 00:00:24]} 22. Qa5
{[%clk 00:01:24]} {[%emt 00:00:03]} Qc6 {[%clk 00:01:11]} {[%emt 00:00:07]} 23.
Ne5 {[%clk 00:01:18]} {[%emt 00:00:08]} Qb5 {[%clk 00:01:09]} {[%emt 00:00:04]}
24. Qxb5 {[%clk 00:01:10]} {[%emt 00:00:11]} axb5 {[%clk 00:01:10]} 25. g4
{[%clk 00:01:05]} {[%emt 00:00:08]} Be6 {[%clk 00:01:05]} {[%emt 00:00:06]} 26.
Nd3 {[%clk 00:01:04]} {[%emt 00:00:02]} Nc4 {[%clk 00:01:05]} {[%emt 00:00:03]}
27. Nc5 {[%clk 00:01:03]} {[%emt 00:00:04]} Bc8 {[%clk 00:01:04]} {[%emt
00:00:03]} 28. Nd3 {[%clk 00:00:47]} {[%emt 00:00:18]} f6 {[%clk 00:01:02]}
{[%emt 00:00:04]} 29. Nb4 {[%clk 00:00:46]} {[%emt 00:00:03]} Be6 {[%clk
00:01:02]} {[%emt 00:00:01]} 30. Kf1 {[%clk 00:00:43]} {[%emt 00:00:05]} Kf7
{[%clk 00:01:01]} {[%emt 00:00:03]} 31. Ke2 {[%clk 00:00:43]} {[%emt 00:00:02]}
Ke8 {[%clk 00:01:00]} {[%emt 00:00:03]} 32. Nd3 {[%clk 00:00:34]} {[%emt
00:00:10]} Kd7 {[%clk 00:00:48]} {[%emt 00:00:15]} 33. Bg3 {[%clk 00:00:30]}
{[%emt 00:00:06]} b6 {[%clk 00:00:44]} {[%emt 00:00:06]} 34. Nf4 {[%clk
00:00:30]} {[%emt 00:00:02]} Bf7 {[%clk 00:00:45]} {[%emt 00:00:01]} 35. Nd3
{[%clk 00:00:29]} {[%emt 00:00:03]} Bd6 {[%clk 00:00:40]} {[%emt 00:00:07]} 36.
Bh4 {[%clk 00:00:28]} {[%emt 00:00:03]} Be7 {[%clk 00:00:37]} {[%emt 00:00:05]}
37. f4 {[%clk 00:00:25]} {[%emt 00:00:05]} Be6 {[%clk 00:00:35]} {[%emt
00:00:05]} 38. Kf3 {[%clk 00:00:18]} {[%emt 00:00:09]} Nd2+ {[%clk 00:00:29]}
{[%emt 00:00:08]} 39. Ke2 {[%clk 00:00:18]} {[%emt 00:00:01]} Nb1 {[%clk
00:00:28]} {[%emt 00:00:04]} 40. Be1 {[%clk 00:00:16]} {[%emt 00:00:04]} Na3
{[%clk 00:00:28]} {[%emt 00:00:02]} 41. Kf3 {[%clk 00:00:14]} {[%emt 00:00:03]}
Nc4 {[%clk 00:00:29]} {[%emt 00:00:01]} 42. Bg3 {[%clk 00:00:12]} {[%emt
00:00:04]} Bd6 {[%clk 00:00:25]} {[%emt 00:00:07]} 43. Ke2 {[%clk 00:00:13]}
Be7 {[%clk 00:00:22]} {[%emt 00:00:05]} 44. Kf3 {[%clk 00:00:14]} h5 {[%clk
00:00:19]} {[%emt 00:00:05]} 45. gxh5 {[%clk 00:00:14]} {[%emt 00:00:02]} gxh5
{[%clk 00:00:20]} 46. h4 {[%clk 00:00:16]} Bf5 {[%clk 00:00:17]} {[%emt
00:00:05]} 47. Nb4 {[%clk 00:00:15]} {[%emt 00:00:03]} Bxb4 {[%clk 00:00:12]}
{[%emt 00:00:06]} 48. cxb4 {[%clk 00:00:16]} {[%emt 00:00:01]} Be4+ {[%clk
00:00:12]} {[%emt 00:00:03]} 49. Ke2 {[%clk 00:00:16]} {[%emt 00:00:02]} Ke6
{[%clk 00:00:10]} {[%emt 00:00:04]} 50. a4 {[%clk 00:00:17]} {[%emt 00:00:02]}
bxa4 {[%clk 00:00:05]} {[%emt 00:00:07]} 51. Bxa4 {[%emt 00:00:02]} Nd6 {[%emt
00:00:04]} 1-0

[Event "Blixt-SM 2021"]
[Site "Elite Hotel Marina Plaza, Kungstorget 6, Helsingborg, Sweden"]
[Date "2021.11.14"]
[Round "2.3"]
[White "Olsson, Linus"]
[Black "Rajcevski, Dejan"]
[Result "1-0"]
[TimeControl "3 minutes + 2 seconds per move."]
[WhiteTitle "FM"]
[WhiteFideId "1706098"]
[BlackFideId "1759027"]
[WhiteElo "2204"]
[BlackElo "1977"]

1. d4 {[%clk 00:03:02]} Nf6 {[%clk 00:03:03]} {[%emt 00:00:01]} 2. c4 {[%clk
00:03:03]} {[%emt 00:00:01]} e5 {[%clk 00:03:04]} {[%emt 00:00:01]} 3. dxe5
{[%clk 00:03:03]} {[%emt 00:00:02]} Ng4 {[%clk 00:03:05]} 4. Bf4 {[%clk
00:03:03]} {[%emt 00:00:02]} Bb4+ {[%clk 00:03:06]} {[%emt 00:00:01]} 5. Nd2
{[%clk 00:03:04]} {[%emt 00:00:02]} d6 {[%clk 00:03:07]} {[%emt 00:00:01]} 6.
e3 {[%clk 00:02:27]} {[%emt 00:00:39]} dxe5 {[%clk 00:03:02]} {[%emt 00:00:06]}
7. Bg3 {[%clk 00:02:27]} {[%emt 00:00:02]} Bxd2+ {[%clk 00:02:53]} {[%emt
00:00:12]} 8. Qxd2 {[%clk 00:02:28]} {[%emt 00:00:01]} Qxd2+ {[%clk 00:02:53]}
{[%emt 00:00:02]} 9. Kxd2 {[%clk 00:02:28]} {[%emt 00:00:02]} Nc6 {[%clk
00:02:46]} {[%emt 00:00:08]} 10. Rd1 {[%clk 00:02:14]} {[%emt 00:00:16]} Be6
{[%clk 00:02:35]} {[%emt 00:00:13]} 11. Nf3 {[%clk 00:02:00]} {[%emt 00:00:16]}
f6 {[%clk 00:02:36]} {[%emt 00:00:02]} 12. Kc1 {[%clk 00:01:44]} {[%emt
00:00:19]} O-O {[%clk 00:02:26]} {[%emt 00:00:12]} 13. Be2 {[%clk 00:01:41]}
{[%emt 00:00:04]} Nh6 {[%clk 00:02:24]} {[%emt 00:00:04]} 14. Nd2 {[%clk
00:01:28]} {[%emt 00:00:15]} Rfd8 {[%clk 00:02:18]} {[%emt 00:00:08]} 15. Ne4
{[%clk 00:01:21]} {[%emt 00:00:09]} Rxd1+ {[%clk 00:01:32]} {[%emt 00:00:47]}
16. Rxd1 {[%clk 00:01:22]} {[%emt 00:00:02]} Rd8 {[%clk 00:01:28]} {[%emt
00:00:06]} 17. Nc5 {[%clk 00:01:17]} {[%emt 00:00:07]} Bc8 {[%clk 00:01:27]}
{[%emt 00:00:03]} 18. Bf3 {[%clk 00:01:09]} {[%emt 00:00:10]} Nf5 {[%clk
00:01:17]} {[%emt 00:00:12]} 19. a3 {[%clk 00:00:29]} {[%emt 00:00:42]} Kf7
{[%clk 00:00:57]} {[%emt 00:00:22]} 20. b4 {[%clk 00:00:28]} {[%emt 00:00:02]}
a6 {[%clk 00:00:51]} {[%emt 00:00:08]} 21. Nxa6 {[%clk 00:00:19]} {[%emt
00:00:11]} Rxd1+ {[%clk 00:00:34]} {[%emt 00:00:19]} 22. Kxd1 {[%clk 00:00:20]}
bxa6 {[%clk 00:00:33]} {[%emt 00:00:03]} 23. Bxc6 {[%clk 00:00:21]} {[%emt
00:00:01]} Ke6 {[%clk 00:00:31]} {[%emt 00:00:04]} 24. Ke2 {[%clk 00:00:18]}
{[%emt 00:00:05]} Ne7 {[%clk 00:00:31]} {[%emt 00:00:02]} 25. Be4 {[%clk
00:00:16]} {[%emt 00:00:04]} g6 {[%clk 00:00:22]} {[%emt 00:00:10]} 26. Bc2
{[%clk 00:00:15]} {[%emt 00:00:03]} f5 {[%emt 00:00:02]} 27. Bh4 {[%clk
00:00:15]} {[%emt 00:00:02]} Nc6 {[%clk 00:00:20]} {[%emt 00:00:05]} 28. Ba4
{[%clk 00:00:15]} {[%emt 00:00:02]} Bd7 {[%clk 00:00:14]} {[%emt 00:00:09]} 29.
Bb3 {[%clk 00:00:16]} Kf7 {[%clk 00:00:07]} {[%emt 00:00:09]} 30. c5+ {[%clk
00:00:16]} {[%emt 00:00:02]} Kg7 {[%clk 00:00:08]} 31. Bc4 {[%clk 00:00:16]}
{[%emt 00:00:01]} a5 {[%emt 00:00:08]} 1-0